Cogmind - Beta 16 @@@ ROGUE MODE // 2025.12.20 @ 19:51:25 Player: ConfusedWizard Result: Self-destructed Performance ------------- Evolutions (1) 500 Regions Visited (2) 400 Robots Destroyed (14) 70 Value Destroyed (252) 252 Prototype IDs (0) 0 Alien Tech Used (0) 0 Bonus (0) 0 TOTAL SCORE: 1222 Bonus ------- None Cogmind --------- Core Integrity 400/400 Matter 29/300 Energy 100/100 System Corruption 0% Temperature Cool (0) Movement Core (50) Location -9/Materials Parts ------- > --- POWER (1) -------- (None) > --- PROPULSION (3) --- (None) > --- UTILITY (3) ------ ECM Suite > --- WEAPON (2) ------- (None) > --- INVENTORY (5) ---- Light Ion Engine Small Storage Unit Grenade Launcher Peak State ------------ > --- POWER ------------ Ion Engine > --- PROPULSION ------- Flight Unit Flight Unit Flight Unit > --- UTILITY ---------- High-capacity Storage Unit ECM Suite > --- WEAPON ----------- EM Pulse Gun EM Pulse Gun > --- INVENTORY -------- Light Ion Engine Light Ion Engine Light Ion Engine Flight Unit Small Storage Unit Signal Interpreter ECM Suite ECM Suite Light Assault Rifle Grenade Launcher [Rating: 9] Favorites ----------- Power Ion Engine Engine Ion Engine Propulsion Light Treads Treads Light Treads Flight Unit Flight Unit Utility ECM Suite Device ECM Suite Storage High-capacity Storage Unit Processor Signal Interpreter Weapon Assault Rifle Energy Gun EM Pulse Gun Ballistic Gun Assault Rifle Launcher Grenade Launcher Build | -11 -10 -9 ------- Run | Yrd Mat Mat Slots Evolved 2 | . . 2 Power . | . . . Propulsion 1 | . . 1 Utility 1 | . . 1 Weapon . | . . . Parts Attached 21 | 6 7 8 Power 2 | 1 1 . Engine 2 | 1 1 . Core . | . . . Reactor . | . . . Propulsion 8 | 2 2 4 Treads 4 | 2 2 . Leg . | . . . Wheel . | . . . Hover . | . . . Flight 4 | . . 4 Utility 6 | 1 2 3 Device 3 | . 1 2 Storage 2 | 1 1 . Processor 1 | . . 1 Hackware . | . . . Protection . | . . . Artifact . | . . . Weapon 5 | 2 2 1 Energy Gun 2 | . 2 . Energy Cannon . | . . . Ballistic Gun 2 | 2 . . Ballistic Cannon . | . . . Launcher 1 | . . 1 Special Weapon . | . . . Impact Weapon . | . . . Slashing Weapon . | . . . Piercing Weapon . | . . . Special Melee Weapon . | . . . Unidentified Prototypes . | . . . Parts Lost 9 | . 2 7 Power 2 | . 1 1 Propulsion 4 | . . 4 Utility 1 | . . 1 Weapon 2 | . 1 1 Highest Loss Streak 7 | . 1 7 To Critical Strikes . | . . . Average Backups 9 | 1 10 5 Power 2 | . 2 1 Propulsion 2 | . 2 1 Utility 2 | . 2 1 Weapon 1 | . 1 1 Tool/Special . | . . . Unused Backups 3 | . . 3 Power 3 | . . 3 Propulsion . | . . . Utility . | . . . Weapon . | . . . Tool/Special . | . . . Average Slot Usage (%) 96 | . 97 73 Engine 13 | . 13 11 Treads 26 | . 28 1 Flight 1 | . . 26 Device 12 | . 12 19 Storage 13 | . 14 2 Energy Gun 7 | . 7 12 Ballistic Gun 19 | . 20 . Peak Build Rating 9 | 6 8 9 Average Rating 7 | 5 7 6 On Entrance 4 | . 6 8 Avg Prop Armor Cover (%) . | . . . Naked Turns . | . . . Heaviest Build 51 | 13 51 11 Greatest Support 40 | 40 40 12 Greatest Overweight (x) 2 | . 1 2 Average Overweight (x) . | . . . Largest Inventory Capacity 20 | 8 20 20 Average Capacity 17 | 7 18 6 Most Carried 14 | 5 14 13 Average Carried 9 | 1 10 4 Final Capacity 20 | 8 20 5 Final Carried 13 | 1 13 3 Class Distribution -------------------- 100% | Mutant Dominant Class ---------------- Mutant | -10/Materials Mutant | -9/Materials Resources | -11 -10 -9 ----------- Run | Yrd Mat Mat Matter Collected 316 | 220 96 . Remotely . | . . . Salvage Created 364 | 65 299 . Parts 29 | 1 28 . Haulers Intercepted . | . . . Recyclers Shooed 1 | . 1 . Parts Field Recycled . | . . . Retrieved Matter . | . . . Parts Self-Destructed . | . . . Prevented . | . . . Parts Restored . | . . . Kills | -11 -10 -9 ------- Run | Yrd Mat Mat Combat Hostiles Destroyed 13 | . 13 . Guns 13 | . 13 . Classes Destroyed 3 | 1 2 . Recycler 1 | 1 . . Swarmer 9 | . 9 . Grunt 4 | . 4 . Best Kill Streak 3 | 1 3 . Combat Bots Only 3 | . 3 . Max Kills in Single Turn 1 | 1 1 . Gunslinging . | . . . Exploded . | . . . Melee . | . . . Uniques/NPCs Destroyed . | . . . Combat | -11 -10 -9 -------- Run | Yrd Mat Mat Hostile Shots Fired 151 | . 130 21 Missed 47 | . 41 6 Hits 104 | . 89 15 Projectile 104 | . 89 15 Critical Strikes 1 | . . 1 Damage Taken 982 | . 796 186 Core 78 | . 78 . Absorbed by Shields . | . . . Core Remaining (%) 84 | 100 68 . Volleys Fired 57 | 4 53 . Largest 2 | 2 2 . Hottest 80 | 40 80 . Shots Fired 109 | 8 101 . Gun 109 | 8 101 . Cannon . | . . . Launcher . | . . . Special . | . . . Kinetic 95 | 8 87 . Thermal . | . . . Explosive . | . . . Electromagnetic 14 | . 14 . Robot Hit Streak 8 | 3 8 . Robot Miss Streak 5 | 1 5 . Penetration Max . | . . . Secondary Targets 4 | . 4 . Max Gunslinging Chain 1 | . 1 . Shots Hit Robots 59 | 5 54 . Core Hits 23 | 2 21 . Critical Kills . | . . . Critical Parts Destroyed . | . . . Critical Strikes . | . . . Melee Attacks . | . . . Impact . | . . . Slashing . | . . . Piercing . | . . . Sneak Attacks . | . . . Combat Hostiles . | . . . Follow-up Attacks . | . . . Damage Inflicted 587 | 58 529 . Guns 579 | 58 521 . Cannons . | . . . Explosions . | . . . Melee . | . . . Ramming 8 | . 8 . Kinetic 526 | 58 468 . Thermal . | . . . Explosive . | . . . Electromagnetic 53 | . 53 . Impact . | . . . Slashing . | . . . Piercing . | . . . Highest Corruption 6 | . 6 . Average Corruption 2 | . 2 . Corruption Purged . | . . . Corruption Blocked . | . . . Effects 6 | . 6 . Message Errors 2 | . 2 . Matter Fused 2 | . 2 . Heat Flow Errors 1 | . 1 . Data Loss (major) 1 | . 1 . Overload Shots . | . . . Overflow Damage . | . . . Projectiles . | . . . Explosions . | . . . Melee . | . . . Knockbacks . | . . . Impact . | . . . Kinetic . | . . . Secondary . | . . . Self-Inflicted Damage . | . . . Shots . | . . . Rammed 3 | . 3 . Targets Rammed 3 | . 3 . Kicked . | . . . Crushed . | . . . Highest Temperature 270 | . 270 4 Average Temperature 41 | . 41 4 Received Heat Transfer 291 | . 168 123 Siege Activations . | . . . Martial Activations . | . . . Shielding Activations . | . . . Robots Disrupted . | . . . Combat Hostiles . | . . . Robots Corrupted . | . . . Combat Hostiles . | . . . Parts Fried . | . . . Impact Corruptions . | . . . Robots Melted . | . . . Combat Hostiles . | . . . Parts Melted . | . . . Heat Transferred . | . . . Parts Sabotaged . | . . . Parts Stolen . | . . . Parts Stripped . | . . . Power Chain Reactions . | . . . Alert | -11 -10 -9 ------- Run | Yrd Mat Mat Maximum Alert Level . | . . . Low Security (%) 100 | 100 100 100 Level 1 . | . . . Level 2 . | . . . Level 3 . | . . . Level 4 . | . . . Level 5 . | . . . High Security . | . . . Max Security . | . . . Peak Influence 77 | 5 77 9 Initial 9 | . . 9 Average 16 | . 18 2 Influence Increases 363 | 5 358 . Destroy 0b10 Robot/C 260 | . 260 . Destroy 0b10 Robot/NC 5 | 5 . . Destroy Leader 30 | . 30 . Successful Hack 38 | . 38 . Disable Machine 30 | . 30 . Influence Decreases 363 | 5 336 22 Entered New Map 13 | . . 13 Time Decay 340 | 5 326 9 Lost Part 10 | . 10 . Squads Dispatched 1 | . . 1 Investigation . | . . . Extermination . | . . . Reinforcement 1 | . . 1 Assault . | . . . Garrison . | . . . Intercept . | . . . Searches Triggered . | . . . Construction Impeded . | . . . Haulers Reinforced . | . . . Active Scanning Responses . | . . . Cargo Convoy Interrupts . | . . . Stealth | -11 -10 -9 --------- Run | Yrd Mat Mat Distress Signals 3 | . 3 . Communications Jammed . | . . . Distress Signals . | . . . Times Spotted 36 | . 31 5 Peak Tracking Total 4 | . 4 4 Tactical Retreats 3 | . 3 . ECM-based Alert Blocks 5 | . 5 . Traps | -11 -10 -9 ------- Run | Yrd Mat Mat Traps Triggered 4 | . 4 . Indirectly . | . . . Trap Hack Attempts . | . . . Triggered . | . . . Disarmed . | . . . Reprogrammed . | . . . Reused . | . . . Traps Extracted . | . . . Installed . | . . . Triggered . | . . . Machines | -11 -10 -9 ---------- Run | Yrd Mat Mat Machines Disabled 2 | . 2 . Max in Single Turn 1 | . 1 . Machines Repaired . | . . . Machines Dismantled . | . . . Machines Sabotaged . | . . . Overloaded Fab Kills . | . . . Hacking | -11 -10 -9 --------- Run | Yrd Mat Mat Machines Accessed 7 | . 7 . Terminals 7 | . 7 . Fabricators . | . . . Repair Stations . | . . . Recycling Units . | . . . Scanalyzers . | . . . Garrison Access . | . . . Total Hacks 21 | . 21 . Successful 13 | . 13 . Failed 8 | . 8 . Catastrophic . | . . . Database Lockouts . | . . . Manual 21 | . 21 . Terminals 21 | . 21 . Fabricators . | . . . Repair Stations . | . . . Recycling Units . | . . . Scanalyzers . | . . . Garrison Access . | . . . Terminal Hacks 7 | . 7 . Level Access Points 1 | . 1 . Branch Access Points 1 | . 1 . Emergency Access Points 1 | . 1 . Recall Investigation 1 | . 1 . Recall Reinforcements 1 | . 1 . Zone Layout 1 | . 1 . Patrol Navigation 1 | . 1 . Fabricator Hacks . | . . . Repair Station Hacks . | . . . Recycling Unit Hacks . | . . . Scanalyzer . | . . . Garrison Access Hacks . | . . . Unauthorized Hacks 6 | . 6 . Terminals 6 | . 6 . Botnet 6 | . 6 . Fabricators . | . . . Repair Stations . | . . . Recycling Units . | . . . Scanalyzers . | . . . Garrison Access . | . . . Data Cores Recovered . | . . . Used . | . . . Hacking Detections 2 | . 2 . Full Trace Events . | . . . Feedback Events . | . . . Feedback Blocked . | . . . Robot Schematics Acquired . | . . . Robots Built . | . . . Authchips . | . . . Time . | . . . Total Robot Build Rating . | . . . Part Schematics Acquired . | . . . Parts Built . | . . . Authchips . | . . . Time . | . . . Total Part Build Rating . | . . . Part Studies Acquired . | . . . Parts Repaired . | . . . Time . | . . . Parts Recycled . | . . . Recycled Matter . | . . . Retrieved Matter . | . . . Retrieved Components . | . . . Parts Scanalyzed . | . . . Part Schematics Acquired . | . . . Parts Damaged . | . . . Bothacking | -11 -10 -9 ------------ Run | Yrd Mat Mat Used RIF Installer . | . . . Robots Hacked . | . . . Non-combat . | . . . Combat . | . . . Robot Hacks Applied . | . . . Relay Couplers Released . | . . . Fabnet Peak Effective % . | . . . Robots Rewired . | . . . Allies Hacked . | . . . Hacks Repelled . | . . . Allies | -11 -10 -9 -------- Run | Yrd Mat Mat Total Allies . | . . . Largest Group . | . . . Highest-Rated Group . | . . . Highest-Rated Ally . | . . . Total Orders . | . . . Ally Attacks . | . . . Total Damage . | . . . Kills . | . . . Allies Corrupted . | . . . Allies Melted . | . . . Intel | -11 -10 -9 ------- Run | Yrd Mat Mat Active Infowar (turns) 1448 | . 1425 23 ECM 1448 | . 1425 23 Robot Analysis Total . | . . . Derelict Logs Recovered . | . . . Drone Launches . | . . . Drone Recoveries . | . . . Exploration | -11 -10 -9 ------------- Run | Yrd Mat Mat Turns Passed 1856 | 147 1627 82 Spaces Moved 824 | 93 613 118 Core 25 | 23 . 2 Treads 683 | 70 613 . Legs . | . . . Wheels . | . . . Hover . | . . . Flight 116 | . . 116 Fastest Speed 34 | 50 160 34 Average Speed 190 | 132 227 38 Slowest Speed 240 | 160 240 150 Overloaded Moves . | . . . Propulsion Burnouts . | . . . Robots Hopped . | . . . Potential Cave-ins . | . . . Cave-ins Triggered . | . . . Exploration Rate (%) 36 | 5 96 9 Regions Visited 2 Branch Regions . Pre-discovered Areas . | . . . Known Exits Taken 1 | . 1 . Unknown Exits Taken 1 | 1 . . Scrap Searched . | . . . Spaces Dug . | . . . Terrain Destroyed . | . . . Melee . | . . . Projectile . | . . . AOE . | . . . Terrain Rammed . | . . . Walls Destroyed . | . . . Machines Disabled . | . . . Actions | -11 -10 -9 --------- Run | Yrd Mat Mat Total 1019 | 111 749 159 Wait 72 | . 54 18 Move 822 | 92 612 118 Hop . | . . . Pick Up 25 | 8 17 . Fast Attach . | . . . Attach 21 | 6 6 9 Detach 5 | . 1 4 Swap 3 | . 1 2 Drop 11 | 1 2 8 Fire 57 | 4 53 . Melee . | . . . Ram . | . . . Kick . | . . . Crush 3 | . 3 . Escape Stasis . | . . . Rewire . | . . . Trap . | . . . Miscellaneous . | . . . Route ------- -11/Scrapyard -10/Materials (discovered 4 exits: *Mat x3 / *Min) -9/Materials History --------- Turn | Location | Event 8 | -11/Scrapyard | Discovered new exit (range 14) 148 | -11/Scrapyard | Entered Materials 301 | -10/Materials | Build established: Mutant 438 | -10/Materials | Discovered new exit (range 15) 928 | -10/Materials | Discovered new exit (range 12) 1154 | -10/Materials | Discovered new exit (range 13) 1607 | -10/Materials | Identified exit to Materials 1607 | -10/Materials | Identified exit to Mines 1775 | -10/Materials | Entered another Materials area 1775 | -9/Materials | Evolved 2 slots: Propulsion x1, Utility x1 1857 | -9/Materials | Self-destructed Last Messages --------------- GOAL=ESCAPE Dropped Lgt. Treads. O-16 Technician: "IFF HANDSHAKE FAILED. SECURING TERMINAL." [Achievement: Ghost 'Em] Dropped Lgt. Treads. Dropped ECM Suite. Dropped Lgt. Assault Rifle. Dropped Corrupted Lgt. Ion Engine. ALERT: Hostiles spotted, dispatching reinforcements to Terminal M007. Dropped Hcp. Storage Unit. Dropped Lgt. Ion Engine. Dropped EM Pulse Gun. Discarded Signal Interpreter. T-07 Excavator is excavating. Flight Unit destroyed. EM Pulse Gun destroyed. Flight Unit destroyed. ECM Suite destroyed. Critical hit (Burn: +37). Ion Engine destroyed. Map ----- +----------------------------------------------------+ | ????????????????????## " #?????????????? | | ????????????????????# T #????#####????? | | ????????????????????## " ! #????#![*#????? | | ?????????????????????# #????#*=!#????? | | ?????????????????????#####/####????#[= #????? | | ???????????????????????# ####### #????? | | ???????????????????????# #????? | | ???????????????????????# " #????? | | ???????????????????????# #????? | | ???????????????????????# ###########????? | | ????????????????????#??## ####????????????? | | ????????????????????# ### !##???????????? | | ????????????????????# # !#???????????? | | ?????????????????????# !#???????????? | | ?????????????????????# # !#???????????? | | ?????????????????????#### !#???????????? | | ????????????????????????# !##???????????? | | ????????????????????????# ####????????????? | | ????????????????????????# #???????????????? | | ????????????????????????# #???????????????? | | ????????????????????????# #???????????????? | | ????????????????????????#gg #???????????????? | | ????????????????????????# g #???????????????? | | ????????????????????????# #???????????????? | | ????????????????????????# #???????????????? | | ????????????????????????#@ #???????????????? | | ????????????????????????# #???????????????? | | ????????????????????????# #???????????????? | | ????????????????????????# #???????????????? | | ????????????????????????# ##### !!#?????? | | ????????????????????????# ==#?????? | | ?????????????????????#####+###### ==#?????? | | ?????????????????????# ] #????????????? | | ?????????????????????# #????????????? | | ?????????????????????# ][[ #????????????? | | ?????????????????????# ][[ #????????????? | | ?????????????????????# ][[ #????????????? | | ?????????????????????# #????????????? | | ?????????????????????# #????????????? | | ?????????????????????# #????????????? | | ?????????????????????######+##+#????????????? | | ??????????????????????????# ???????????????? | | ??????????????????????????# ???????????????? | | ??????????????????????????# ??????????????? | | ??????????????????????????# ??????????????? | | ??????????????????????????# ?????????????? | | ??????????????????????????# ?????????????? | | ?????????????????????????? ????????????? | | ??????????????????????????#+####????????????? | | ????????????????????????????????????????????? | +----------------------------------------------------+ Best States ------------- Heat Dissipation 28 Energy Generation 10 Energy Capacity 250 Matter Stores 244 Matter Capacity 300 Sight Range 16 Terrain Scan Density 10 ECM Strength 2 Evasion (%) 63 Recoil Reduction 2 Item Schematics ----------------- None Robot Schematics ------------------ None Fabricated ------------ Nothing Repaired ---------- Nothing Studied --------- None Alien Tech Used ----------------- None Achievements -------------- Ghost 'Em root@ Challenges ------------ None Game ------ Seed EncryptedMicrowarpRedirector Manual? 0 Play Time 00:20:03 Cumulative 3.7 hours Start 2025.12.20 @ 19:00:27 End 2025.12.20 @ 19:51:25 Sessions 1 Manual Loads 0 Difficulty Rogue Special Mode None Game No. 18 Rogue 18 Adventurer 0 Explorer 0 Win Type - Total 0 Types 0/0/0/0/0/0/0/0/0/0 Lore% 7 Gallery% 7 Achievement% 6 Wizard Run 0 Options --------- Layout 1 ASCII 0 Keyboard 0 Movement Arrows Keybinds 0 Fullscreen 2 Font 24/Smallcaps Map View 130x35 Zoom Use 0% Tactical HUD 0 Map Filters NONE Filters NONE Steam 1 RUN: 4d253248-aebf-4094-bfe9-c2538138f1aa